[Event "Titled Tuesday Blitz March 01 Late 2022"]
[White "Bilych, Olexiy"]
[Black "Golubovskis, Maksims"]
[WhiteFideId "14156504"]
[BlackFideId "11608528"]
[WhiteElo "2195"]
[BlackElo "2066"]
[Result "1-0"]
[Round "01"]
[TimeControl "180+1"]
[Date "2022.03.02"]
[WhiteClock "0:01:05"]
[BlackClock "0:00:24"]

1. e4 {[%clk 0:03:00]}  c5 {[%clk 0:02:57]} 2. Nf3 {[%clk 0:03:00]}  d6 {[%clk 0:02:58]} 3. d4 {[%clk 0:03:00]}  cxd4 {[%clk 0:02:58]} 4. Nxd4 {[%clk 0:03:01]}  Nf6 {[%clk 0:02:58]} 5. Nc3 {[%clk 0:03:01]}  a6 {[%clk 0:02:58]} 6. Bg5 {[%clk 0:02:58]}  e6 {[%clk 0:02:58]} 7. f4 {[%clk 0:02:58]}  Nbd7 {[%clk 0:02:57]} 8. Qf3 {[%clk 0:02:57]}  Qc7 {[%clk 0:02:48]} 9. O-O-O {[%clk 0:02:57]}  b5 {[%clk 0:02:47]} 10. Bd3 {[%clk 0:02:25]}  Bb7 {[%clk 0:02:32]} 11. Rhe1 {[%clk 0:02:11]}  Be7 {[%clk 0:02:29]} 12. Qg3 {[%clk 0:01:32]}  O-O {[%clk 0:02:19]} 13. e5 {[%clk 0:01:31]}  Nd5 {[%clk 0:02:13]} 14. Bxe7 {[%clk 0:01:25]}  Nxe7 {[%clk 0:02:11]} 15. Ndxb5 {[%clk 0:01:26]}  axb5 {[%clk 0:02:08]} 16. exd6 {[%clk 0:01:26]}  Qd8 {[%clk 0:01:59]} 17. dxe7 {[%clk 0:01:25]}  Qxe7 {[%clk 0:02:00]} 18. Bxb5 {[%clk 0:01:15]}  Nc5 {[%clk 0:01:50]} 19. Qg5 {[%clk 0:01:13]}  Qxg5 {[%clk 0:01:44]} 20. fxg5 {[%clk 0:01:14]}  Bxg2 {[%clk 0:01:44]} 21. Kb1 {[%clk 0:01:10]}  Rfd8 {[%clk 0:01:40]} 22. Rxd8+ {[%clk 0:01:08]}  Rxd8 {[%clk 0:01:40]} 23. b4 {[%clk 0:01:08]}  Nb7 {[%clk 0:01:32]} 24. a4 {[%clk 0:01:08]}  Nd6 {[%clk 0:01:28]} 25. Bd3 {[%clk 0:01:06]}  Rb8 {[%clk 0:01:26]} 26. Nb5 {[%clk 0:01:06]}  Nxb5 {[%clk 0:01:19]} 27. axb5 {[%clk 0:01:07]}  Bd5 {[%clk 0:01:16]} 28. c4 {[%clk 0:01:07]}  Bf3 {[%clk 0:01:13]} 29. Kb2 {[%clk 0:01:06]}  Kf8 {[%clk 0:01:08]} 30. c5 {[%clk 0:01:06]}  Ke7 {[%clk 0:01:05]} 31. Kc3 {[%clk 0:01:06]}  Ra8 {[%clk 0:00:45]} 32. b6 {[%clk 0:01:05]}  Ra3+ {[%clk 0:00:38]} 33. Kd4 {[%clk 0:01:05]}  Bd5 {[%clk 0:00:37]} 34. Bc4 {[%clk 0:01:04]}  Bb7 {[%clk 0:00:34]} 35. b5 {[%clk 0:01:04]}  Rh3 {[%clk 0:00:28]} 36. c6 {[%clk 0:01:05]}  Rh4+ {[%clk 0:00:27]} 37. Kc5 {[%clk 0:01:05]}  Bc8 {[%clk 0:00:24]} 38. b7 {[%clk 0:01:05]} 1-0


[Site "https://www.chess.com"]

[Event "Titled Tuesday Blitz March 01 Late 2022"]
[White "Boyer, Mahel"]
[Black "Golubovskis, Maksims"]
[WhiteFideId "45102422"]
[BlackFideId "11608528"]
[WhiteElo "2328"]
[BlackElo "2066"]
[Result "0-1"]
[Round "01"]
[TimeControl "180+1"]
[Date "2022.03.02"]
[WhiteClock "0:00:01"]
[BlackClock "0:01:29"]

1. e4 {[%clk 0:02:00]}  c5 {[%clk 0:02:56]} 2. Nf3 {[%clk 0:00:52]}  e6 {[%clk 0:02:55]} 3. g3 {[%clk 0:00:52]}  Nf6 {[%clk 0:02:55]} 4. d3 {[%clk 0:00:52]}  Nc6 {[%clk 0:02:55]} 5. Bg2 {[%clk 0:00:52]}  d5 {[%clk 0:02:55]} 6. Qe2 {[%clk 0:00:52]}  Be7 {[%clk 0:02:53]} 7. O-O {[%clk 0:00:52]}  O-O {[%clk 0:02:54]} 8. e5 {[%clk 0:00:47]}  Nd7 {[%clk 0:02:54]} 9. c4 {[%clk 0:00:47]}  Nb6 {[%clk 0:02:46]} 10. Nc3 {[%clk 0:00:45]}  Nd4 {[%clk 0:02:44]} 11. Nxd4 {[%clk 0:00:28]}  cxd4 {[%clk 0:02:45]} 12. Nd1 {[%clk 0:00:27]}  dxc4 {[%clk 0:02:36]} 13. dxc4 {[%clk 0:00:28]}  d3 {[%clk 0:02:37]} 14. Qe4 {[%clk 0:00:25]}  d2 {[%clk 0:02:36]} 15. Ne3 {[%clk 0:00:25]}  dxc1=Q {[%clk 0:02:36]} 16. Raxc1 {[%clk 0:00:26]}  Bc5 {[%clk 0:02:30]} 17. Rfd1 {[%clk 0:00:25]}  Qe7 {[%clk 0:02:28]} 18. a3 {[%clk 0:00:26]}  Bxe3 {[%clk 0:02:27]} 19. Qxe3 {[%clk 0:00:26]}  Bd7 {[%clk 0:02:19]} 20. Bxb7 {[%clk 0:00:23]}  Ba4 {[%clk 0:02:17]} 21. Bxa8 {[%clk 0:00:20]}  Bxd1 {[%clk 0:02:17]} 22. Be4 {[%clk 0:00:18]}  Bh5 {[%clk 0:02:13]} 23. b4 {[%clk 0:00:14]}  Bg6 {[%clk 0:02:12]} 24. Rd1 {[%clk 0:00:13]}  Nxc4 {[%clk 0:02:11]} 25. Qd4 {[%clk 0:00:12]}  Bxe4 {[%clk 0:01:55]} 26. Qxe4 {[%clk 0:00:13]}  Nb6 {[%clk 0:01:47]} 27. Rd6 {[%clk 0:00:10]}  Qc7 {[%clk 0:01:43]} 28. Rc6 {[%clk 0:00:09]}  Qd7 {[%clk 0:01:42]} 29. Rd6 {[%clk 0:00:09]}  Qa4 {[%clk 0:01:43]} 30. Qd4 {[%clk 0:00:06]}  Nd5 {[%clk 0:01:40]} 31. Qc5 {[%clk 0:00:03]}  Qxa3 {[%clk 0:01:38]} 32. Rd7 {[%clk 0:00:03]}  Qa1+ {[%clk 0:01:36]} 33. Kg2 {[%clk 0:00:03]}  Qxe5 {[%clk 0:01:37]} 34. Rxa7 {[%clk 0:00:03]}  Qe4+ {[%clk 0:01:35]} 35. Kg1 {[%clk 0:00:04]}  h5 {[%clk 0:01:30]} 36. b5 {[%clk 0:00:04]}  h4 {[%clk 0:01:30]} 37. gxh4 {[%clk 0:00:02]}  Nf4 {[%clk 0:01:30]} 38. Qc6 {[%clk 0:00:01]}  Qe1# {[%clk 0:01:29]} 0-1


[Site "https://www.chess.com"]

[Event "Titled Tuesday Blitz March 01 Late 2022"]
[White "Brodowski, Piotr"]
[Black "Oye-Stromberg, Alexander"]
[WhiteFideId "1124480"]
[BlackFideId "1525999"]
[WhiteElo "2422"]
[BlackElo "1934"]
[Result "0-1"]
[Round "01"]
[TimeControl "180+1"]
[Date "2022.03.02"]
[WhiteClock "0:00:32"]
[BlackClock "0:00:25"]

1. e4 {[%clk 0:02:59]}  e6 {[%clk 0:02:58]} 2. d4 {[%clk 0:02:59]}  d5 {[%clk 0:02:59]} 3. Nc3 {[%clk 0:02:56]}  Bb4 {[%clk 0:02:57]} 4. Ne2 {[%clk 0:02:54]}  dxe4 {[%clk 0:02:56]} 5. a3 {[%clk 0:02:54]}  Be7 {[%clk 0:02:57]} 6. Nxe4 {[%clk 0:02:54]}  Nf6 {[%clk 0:02:57]} 7. N2g3 {[%clk 0:02:49]}  O-O {[%clk 0:02:57]} 8. Be3 {[%clk 0:02:47]}  Nc6 {[%clk 0:02:57]} 9. c3 {[%clk 0:02:38]}  e5 {[%clk 0:02:53]} 10. Nxf6+ {[%clk 0:02:37]}  Bxf6 {[%clk 0:02:52]} 11. d5 {[%clk 0:02:37]}  Ne7 {[%clk 0:02:52]} 12. Bc4 {[%clk 0:02:37]}  Nf5 {[%clk 0:02:51]} 13. Ne4 {[%clk 0:02:28]}  Nxe3 {[%clk 0:02:46]} 14. fxe3 {[%clk 0:02:28]}  Bg5 {[%clk 0:02:44]} 15. Qf3 {[%clk 0:02:25]}  Kh8 {[%clk 0:02:39]} 16. h4 {[%clk 0:02:22]}  Bh6 {[%clk 0:02:35]} 17. O-O-O {[%clk 0:02:20]}  f5 {[%clk 0:02:33]} 18. Ng5 {[%clk 0:02:21]}  Bxg5 {[%clk 0:02:20]} 19. hxg5 {[%clk 0:02:22]}  Qxg5 {[%clk 0:02:20]} 20. Rh5 {[%clk 0:02:15]}  Qg6 {[%clk 0:02:12]} 21. Rdh1 {[%clk 0:02:08]}  h6 {[%clk 0:02:12]} 22. R1h4 {[%clk 0:01:44]}  Bd7 {[%clk 0:02:07]} 23. Qh3 {[%clk 0:01:42]}  Kh7 {[%clk 0:01:54]} 24. Qh2 {[%clk 0:01:41]}  Rae8 {[%clk 0:01:52]} 25. Bd3 {[%clk 0:01:38]}  e4 {[%clk 0:01:47]} 26. Qxc7 {[%clk 0:01:31]}  exd3 {[%clk 0:01:31]} 27. Qxd7 {[%clk 0:01:31]}  Kg8 {[%clk 0:01:28]} 28. g4 {[%clk 0:01:08]}  f4 {[%clk 0:00:55]} 29. exf4 {[%clk 0:00:57]}  Rxf4 {[%clk 0:00:36]} 30. Rf5 {[%clk 0:00:56]}  Rfe4 {[%clk 0:00:27]} 31. Kd2 {[%clk 0:00:31]}  Re2+ {[%clk 0:00:26]} 32. Kxd3 {[%clk 0:00:31]}  Qa6+ {[%clk 0:00:25]} 33. c4 {[%clk 0:00:31]}  R8e3+ {[%clk 0:00:25]} 34. Kd4 {[%clk 0:00:32]}  Re4+ {[%clk 0:00:25]} 35. Kd3 {[%clk 0:00:32]}  Qxc4# {[%clk 0:00:25]} 0-1


[Site "https://www.chess.com"]

[Event "Titled Tuesday Blitz March 01 Late 2022"]
[White "Coelho, Ramyres Santana"]
[Black "Goltsev, Dmitry"]
[WhiteFideId "2120690"]
[BlackFideId "24176710"]
[WhiteElo "1888"]
[BlackElo "2273"]
[Result "1/2-1/2"]
[Round "01"]
[TimeControl "180+1"]
[Date "2022.03.02"]
[WhiteClock "0:01:57"]
[BlackClock "0:02:11"]

1. e4 {[%clk 0:02:59]}  e6 {[%clk 0:02:59]} 2. d4 {[%clk 0:02:56]}  d5 {[%clk 0:03:00]} 3. Nc3 {[%clk 0:02:56]}  Nf6 {[%clk 0:02:59]} 4. e5 {[%clk 0:02:56]}  Nfd7 {[%clk 0:02:59]} 5. f4 {[%clk 0:02:57]}  c5 {[%clk 0:02:59]} 6. Nf3 {[%clk 0:02:58]}  a6 {[%clk 0:02:57]} 7. a4 {[%clk 0:02:54]}  Nc6 {[%clk 0:02:56]} 8. Be3 {[%clk 0:02:54]}  h5 {[%clk 0:02:54]} 9. Be2 {[%clk 0:02:53]}  g6 {[%clk 0:02:54]} 10. O-O {[%clk 0:02:54]}  Be7 {[%clk 0:02:54]} 11. dxc5 {[%clk 0:02:54]}  Nxc5 {[%clk 0:02:53]} 12. Nd4 {[%clk 0:02:53]}  Nxd4 {[%clk 0:02:51]} 13. Bxd4 {[%clk 0:02:54]}  Bd7 {[%clk 0:02:52]} 14. Qe1 {[%clk 0:02:52]}  Rc8 {[%clk 0:02:51]} 15. Qf2 {[%clk 0:02:51]}  Qc7 {[%clk 0:02:48]} 16. a5 {[%clk 0:02:49]}  Ne4 {[%clk 0:02:41]} 17. Nxe4 {[%clk 0:02:48]}  dxe4 {[%clk 0:02:42]} 18. c3 {[%clk 0:02:44]}  Bc6 {[%clk 0:02:39]} 19. Qe3 {[%clk 0:02:41]}  h4 {[%clk 0:02:35]} 20. Bb6 {[%clk 0:02:41]}  Qb8 {[%clk 0:02:27]} 21. Rfd1 {[%clk 0:02:40]}  Kf8 {[%clk 0:02:23]} 22. h3 {[%clk 0:02:28]}  Kg7 {[%clk 0:02:22]} 23. Kh1 {[%clk 0:02:25]}  Bd5 {[%clk 0:02:21]} 24. Bd4 {[%clk 0:02:11]}  Qc7 {[%clk 0:02:17]} 25. b4 {[%clk 0:01:57]}  Qd6 {[%clk 0:02:11]} 1/2-1/2


[Site "https://www.chess.com"]

[Event "Titled Tuesday Blitz March 01 Late 2022"]
[White "Cupid, Kevin"]
[Black "Nasuta, Grzegorz"]
[WhiteFideId "7700512"]
[BlackFideId "1141686"]
[WhiteElo "2096"]
[BlackElo "2396"]
[Result "1-0"]
[Round "01"]
[TimeControl "180+1"]
[Date "2022.03.02"]
[WhiteClock "0:00:04"]
[BlackClock "0:00:02"]

1. d4 {[%clk 0:02:57]}  d5 {[%clk 0:02:59]} 2. c4 {[%clk 0:02:48]}  e6 {[%clk 0:02:59]} 3. Nc3 {[%clk 0:02:48]}  c6 {[%clk 0:02:59]} 4. Nf3 {[%clk 0:02:43]}  dxc4 {[%clk 0:02:59]} 5. a4 {[%clk 0:02:41]}  Bb4 {[%clk 0:02:58]} 6. e3 {[%clk 0:02:41]}  b5 {[%clk 0:02:59]} 7. Be2 {[%clk 0:02:40]}  a5 {[%clk 0:02:48]} 8. O-O {[%clk 0:02:37]}  Ba6 {[%clk 0:02:42]} 9. Ne5 {[%clk 0:02:35]}  Ne7 {[%clk 0:02:40]} 10. axb5 {[%clk 0:02:33]}  cxb5 {[%clk 0:02:40]} 11. Bf3 {[%clk 0:02:32]}  Ra7 {[%clk 0:02:40]} 12. h3 {[%clk 0:02:08]}  O-O {[%clk 0:02:40]} 13. Qc2 {[%clk 0:02:08]}  Nd7 {[%clk 0:02:39]} 14. Nc6 {[%clk 0:02:04]}  Nxc6 {[%clk 0:02:39]} 15. Bxc6 {[%clk 0:02:05]}  Qb6 {[%clk 0:02:40]} 16. Bf3 {[%clk 0:02:03]}  Nf6 {[%clk 0:02:27]} 17. Rd1 {[%clk 0:02:00]}  Rd7 {[%clk 0:02:18]} 18. Bd2 {[%clk 0:01:40]}  Rfd8 {[%clk 0:02:13]} 19. Ne4 {[%clk 0:01:35]}  Bxd2 {[%clk 0:01:46]} 20. Nxf6+ {[%clk 0:01:17]}  gxf6 {[%clk 0:01:47]} 21. Rxd2 {[%clk 0:01:03]}  a4 {[%clk 0:01:26]} 22. Qe4 {[%clk 0:00:56]}  Bb7 {[%clk 0:01:08]} 23. Qg4+ {[%clk 0:00:51]}  Kf8 {[%clk 0:01:08]} 24. Bxb7 {[%clk 0:00:49]}  Qxb7 {[%clk 0:01:06]} 25. Qh4 {[%clk 0:00:38]}  Ke7 {[%clk 0:01:06]} 26. Qxh7 {[%clk 0:00:37]}  Qc6 {[%clk 0:01:05]} 27. Qc2 {[%clk 0:00:37]}  f5 {[%clk 0:01:01]} 28. Kh2 {[%clk 0:00:35]}  Rg8 {[%clk 0:00:56]} 29. f3 {[%clk 0:00:34]}  Qd6+ {[%clk 0:00:55]} 30. Kh1 {[%clk 0:00:32]}  Rc7 {[%clk 0:00:48]} 31. e4 {[%clk 0:00:28]}  fxe4 {[%clk 0:00:43]} 32. Qxe4 {[%clk 0:00:27]}  Qd5 {[%clk 0:00:36]} 33. Qe3 {[%clk 0:00:16]}  Rd7 {[%clk 0:00:30]} 34. Qc3 {[%clk 0:00:13]}  Qd6 {[%clk 0:00:19]} 35. d5 {[%clk 0:00:12]}  exd5 {[%clk 0:00:19]} 36. Rad1 {[%clk 0:00:11]}  Rg5 {[%clk 0:00:18]} 37. Qe3+ {[%clk 0:00:11]}  Kf6 {[%clk 0:00:18]} 38. Qd4+ {[%clk 0:00:11]}  Kg6 {[%clk 0:00:17]} 39. Qh4 {[%clk 0:00:10]}  f6 {[%clk 0:00:16]} 40. f4 {[%clk 0:00:09]}  Rf5 {[%clk 0:00:17]} 41. Qg4+ {[%clk 0:00:09]}  Kf7 {[%clk 0:00:09]} 42. Qxf5 {[%clk 0:00:09]}  Qe6 {[%clk 0:00:09]} 43. Qh7+ {[%clk 0:00:09]}  Ke8 {[%clk 0:00:09]} 44. Qh8+ {[%clk 0:00:07]}  Ke7 {[%clk 0:00:09]} 45. f5 {[%clk 0:00:05]}  Qe4 {[%clk 0:00:08]} 46. Qh5 {[%clk 0:00:04]}  Kd6 {[%clk 0:00:08]} 47. Re2 {[%clk 0:00:05]}  Qf4 {[%clk 0:00:08]} 48. Re6+ {[%clk 0:00:05]}  Kc5 {[%clk 0:00:08]} 49. Rxf6 {[%clk 0:00:04]}  a3 {[%clk 0:00:06]} 50. bxa3 {[%clk 0:00:04]}  c3 {[%clk 0:00:07]} 51. Qg6 {[%clk 0:00:04]}  d4 {[%clk 0:00:02]} 52. Rc6+ {[%clk 0:00:04]} 1-0


[Site "https://www.chess.com"]

[Event "Titled Tuesday Blitz March 01 Late 2022"]
[White "Curtis, John"]
[Black "Maltsevskaya, Aleksandra"]
[WhiteFideId "3200256"]
[BlackFideId "24174041"]
[WhiteElo "2203"]
[BlackElo "2283"]
[Result "0-1"]
[Round "01"]
[TimeControl "180+1"]
[Date "2022.03.02"]
[WhiteClock "0:01:54"]
[BlackClock "0:02:10"]

1. e4 {[%clk 0:03:00]}  c5 {[%clk 0:02:45]} 2. Nf3 {[%clk 0:03:00]}  e6 {[%clk 0:02:46]} 3. d4 {[%clk 0:02:59]}  cxd4 {[%clk 0:02:47]} 4. Nxd4 {[%clk 0:02:59]}  Nc6 {[%clk 0:02:48]} 5. Nc3 {[%clk 0:02:59]}  Nf6 {[%clk 0:02:48]} 6. Nxc6 {[%clk 0:02:57]}  bxc6 {[%clk 0:02:49]} 7. e5 {[%clk 0:02:57]}  Nd5 {[%clk 0:02:49]} 8. Ne4 {[%clk 0:02:57]}  Qc7 {[%clk 0:02:49]} 9. f4 {[%clk 0:02:57]}  Qb6 {[%clk 0:02:48]} 10. c3 {[%clk 0:02:29]}  Ne3 {[%clk 0:02:40]} 11. Qe2 {[%clk 0:02:21]}  Nxf1 {[%clk 0:02:39]} 12. Rxf1 {[%clk 0:02:19]}  Ba6 {[%clk 0:02:38]} 13. c4 {[%clk 0:02:13]}  Qb4+ {[%clk 0:02:14]} 14. Bd2 {[%clk 0:02:12]}  Qxb2 {[%clk 0:02:10]} 15. Kf2 {[%clk 0:01:55]}  Qd4+ {[%clk 0:02:10]} 16. Be3 {[%clk 0:01:55]}  Qxe4 {[%clk 0:02:09]} 17. Qf3 {[%clk 0:01:55]}  Qxf3+ {[%clk 0:02:09]} 18. Kxf3 {[%clk 0:01:55]}  Bxc4 {[%clk 0:02:10]} 19. Rfb1 {[%clk 0:01:55]}  Bd5+ {[%clk 0:02:10]} 20. Kf2 {[%clk 0:01:54]} 0-1


[Site "https://www.chess.com"]

[Event "Titled Tuesday Blitz March 01 Late 2022"]
[White "Dauner, Benedikt"]
[Black "Ponkratov, Pavel"]
[WhiteFideId "16225899"]
[BlackFideId "4157800"]
[WhiteElo "2230"]
[BlackElo "2487"]
[Result "0-1"]
[Round "01"]
[TimeControl "180+1"]
[Date "2022.03.01"]
[WhiteClock "0:00:13"]
[BlackClock "0:01:10"]

1. d4 {[%clk 0:03:00]}  d5 {[%clk 0:02:59]} 2. Nf3 {[%clk 0:02:58]}  Nf6 {[%clk 0:02:58]} 3. c3 {[%clk 0:02:58]}  Bf5 {[%clk 0:02:56]} 4. Qb3 {[%clk 0:02:57]}  b6 {[%clk 0:02:55]} 5. c4 {[%clk 0:02:56]}  e6 {[%clk 0:02:54]} 6. Nc3 {[%clk 0:02:53]}  dxc4 {[%clk 0:02:53]} 7. Qxc4 {[%clk 0:02:52]}  Be7 {[%clk 0:02:52]} 8. g3 {[%clk 0:02:49]}  c5 {[%clk 0:02:47]} 9. Bg2 {[%clk 0:02:48]}  a6 {[%clk 0:02:46]} 10. dxc5 {[%clk 0:02:39]}  b5 {[%clk 0:02:45]} 11. Qb3 {[%clk 0:02:30]}  Nfd7 {[%clk 0:02:35]} 12. Be3 {[%clk 0:02:25]}  Nxc5 {[%clk 0:02:33]} 13. Bxc5 {[%clk 0:02:24]}  Bxc5 {[%clk 0:02:33]} 14. O-O {[%clk 0:02:09]}  O-O {[%clk 0:02:31]} 15. Nh4 {[%clk 0:02:08]}  Ra7 {[%clk 0:02:30]} 16. Nxf5 {[%clk 0:02:07]}  exf5 {[%clk 0:02:30]} 17. Rad1 {[%clk 0:02:05]}  Qe7 {[%clk 0:02:23]} 18. e3 {[%clk 0:01:47]}  Nd7 {[%clk 0:02:21]} 19. Nd5 {[%clk 0:01:46]}  Qe6 {[%clk 0:02:21]} 20. Rd2 {[%clk 0:01:33]}  Ne5 {[%clk 0:02:16]} 21. Nf4 {[%clk 0:01:27]}  Qxb3 {[%clk 0:02:14]} 22. axb3 {[%clk 0:01:28]}  Bb4 {[%clk 0:02:11]} 23. Rd5 {[%clk 0:01:25]}  Re8 {[%clk 0:02:10]} 24. Rfd1 {[%clk 0:01:23]}  g6 {[%clk 0:02:09]} 25. h4 {[%clk 0:01:22]}  Bf8 {[%clk 0:02:05]} 26. Rd8 {[%clk 0:01:18]}  Rxd8 {[%clk 0:02:03]} 27. Rxd8 {[%clk 0:01:18]}  Kg7 {[%clk 0:02:03]} 28. Ra8 {[%clk 0:01:11]}  Rxa8 {[%clk 0:02:02]} 29. Bxa8 {[%clk 0:01:11]}  Bd6 {[%clk 0:01:58]} 30. Bb7 {[%clk 0:01:11]}  a5 {[%clk 0:01:58]} 31. Ba6 {[%clk 0:01:11]}  b4 {[%clk 0:01:58]} 32. Kf1 {[%clk 0:01:06]}  Nd7 {[%clk 0:01:58]} 33. Bc4 {[%clk 0:01:04]}  Bxf4 {[%clk 0:01:57]} 34. exf4 {[%clk 0:00:58]}  Nc5 {[%clk 0:01:56]} 35. Ke2 {[%clk 0:00:58]}  Kf8 {[%clk 0:01:52]} 36. Ke3 {[%clk 0:00:57]}  Ke7 {[%clk 0:01:52]} 37. Kd4 {[%clk 0:00:55]}  Ne4 {[%clk 0:01:52]} 38. f3 {[%clk 0:00:48]}  Nxg3 {[%clk 0:01:50]} 39. Kc5 {[%clk 0:00:49]}  Nh5 {[%clk 0:01:49]} 40. Kb6 {[%clk 0:00:48]}  Nxf4 {[%clk 0:01:48]} 41. Kxa5 {[%clk 0:00:49]}  f6 {[%clk 0:01:45]} 42. Kxb4 {[%clk 0:00:48]}  Kd6 {[%clk 0:01:45]} 43. Ka5 {[%clk 0:00:46]}  Kc7 {[%clk 0:01:43]} 44. Ka6 {[%clk 0:00:46]}  Kb8 {[%clk 0:01:42]} 45. Kb6 {[%clk 0:00:45]}  g5 {[%clk 0:01:42]} 46. hxg5 {[%clk 0:00:45]}  fxg5 {[%clk 0:01:43]} 47. Kc5 {[%clk 0:00:45]}  g4 {[%clk 0:01:43]} 48. fxg4 {[%clk 0:00:44]}  fxg4 {[%clk 0:01:44]} 49. Kd4 {[%clk 0:00:44]}  g3 {[%clk 0:01:41]} 50. Bf1 {[%clk 0:00:42]}  Kc7 {[%clk 0:01:27]} 51. Ke4 {[%clk 0:00:41]}  g2 {[%clk 0:01:24]} 52. Bxg2 {[%clk 0:00:41]}  Nxg2 {[%clk 0:01:25]} 53. Kf5 {[%clk 0:00:40]}  Nh4+ {[%clk 0:01:11]} 54. Kf6 {[%clk 0:00:19]}  Ng6 {[%clk 0:01:08]} 55. b4 {[%clk 0:00:11]}  Kb6 {[%clk 0:01:05]} 56. Kg5 {[%clk 0:00:05]}  Kb5 {[%clk 0:01:03]} 57. Kh6 {[%clk 0:00:05]}  Nf8 {[%clk 0:01:03]} 58. b3 {[%clk 0:00:06]}  Kxb4 {[%clk 0:01:04]} 59. Kg7 {[%clk 0:00:05]}  Kxb3 {[%clk 0:01:04]} 60. Kh6 {[%clk 0:00:03]}  Kc4 {[%clk 0:01:04]} 61. Kh5 {[%clk 0:00:04]}  Kd5 {[%clk 0:01:04]} 62. Kh4 {[%clk 0:00:05]}  Ke6 {[%clk 0:01:05]} 63. Kh3 {[%clk 0:00:06]}  Kf5 {[%clk 0:01:05]} 64. Kh2 {[%clk 0:00:07]}  Kg4 {[%clk 0:01:06]} 65. Kh1 {[%clk 0:00:08]}  h5 {[%clk 0:01:06]} 66. Kg1 {[%clk 0:00:09]}  h4 {[%clk 0:01:07]} 67. Kg2 {[%clk 0:00:10]}  h3+ {[%clk 0:01:08]} 68. Kh2 {[%clk 0:00:11]}  Ng6 {[%clk 0:01:08]} 69. Kh1 {[%clk 0:00:11]}  Ne5 {[%clk 0:01:08]} 70. Kg1 {[%clk 0:00:12]}  Kg3 {[%clk 0:01:09]} 71. Kh1 {[%clk 0:00:13]}  Ng4 {[%clk 0:01:09]} 72. Kg1 {[%clk 0:00:13]}  h2+ {[%clk 0:01:10]} 73. Kh1 {[%clk 0:00:13]}  Nf2# {[%clk 0:01:10]} 0-1


[Site "https://www.chess.com"]

[Event "Titled Tuesday Blitz March 01 Late 2022"]
[White "Debray, Christopher"]
[Black "Gulecyuz, Deniz"]
[WhiteFideId "630810"]
[BlackFideId "30921341"]
[WhiteElo "2369"]
[BlackElo "1925"]
[Result "0-1"]
[Round "01"]
[TimeControl "180+1"]
[Date "2022.03.02"]
[WhiteClock "0:00:02"]
[BlackClock "0:00:07"]

1. e4 {[%clk 0:02:58]}  c5 {[%clk 0:03:00]} 2. c3 {[%clk 0:02:53]}  Nf6 {[%clk 0:02:59]} 3. e5 {[%clk 0:02:52]}  Nd5 {[%clk 0:02:59]} 4. d4 {[%clk 0:02:46]}  cxd4 {[%clk 0:02:59]} 5. cxd4 {[%clk 0:02:46]}  Nc6 {[%clk 0:02:59]} 6. Nf3 {[%clk 0:02:44]}  d6 {[%clk 0:02:59]} 7. Bc4 {[%clk 0:02:44]}  Nb6 {[%clk 0:02:44]} 8. Bb3 {[%clk 0:02:43]}  d5 {[%clk 0:02:35]} 9. O-O {[%clk 0:02:38]}  Bf5 {[%clk 0:02:34]} 10. Nc3 {[%clk 0:02:32]}  e6 {[%clk 0:02:34]} 11. Bc2 {[%clk 0:02:22]}  Bxc2 {[%clk 0:02:00]} 12. Qxc2 {[%clk 0:02:23]}  a6 {[%clk 0:01:59]} 13. a3 {[%clk 0:02:19]}  Rc8 {[%clk 0:01:57]} 14. Qe2 {[%clk 0:02:14]}  Be7 {[%clk 0:01:48]} 15. Be3 {[%clk 0:02:08]}  Nc4 {[%clk 0:01:29]} 16. Rac1 {[%clk 0:02:06]}  N6a5 {[%clk 0:01:24]} 17. g3 {[%clk 0:01:48]}  Qb6 {[%clk 0:00:48]} 18. Rc2 {[%clk 0:01:43]}  Nb3 {[%clk 0:00:34]} 19. Kg2 {[%clk 0:01:35]}  O-O {[%clk 0:00:21]} 20. h4 {[%clk 0:01:34]}  Qa5 {[%clk 0:00:20]} 21. Qd3 {[%clk 0:01:26]}  b5 {[%clk 0:00:20]} 22. Ng5 {[%clk 0:01:21]}  Bxg5 {[%clk 0:00:18]} 23. hxg5 {[%clk 0:01:20]}  b4 {[%clk 0:00:14]} 24. Rh1 {[%clk 0:01:18]}  g6 {[%clk 0:00:15]} 25. axb4 {[%clk 0:01:10]}  Qxb4 {[%clk 0:00:14]} 26. Qe2 {[%clk 0:00:59]}  Nxb2 {[%clk 0:00:14]} 27. Qg4 {[%clk 0:00:49]}  h5 {[%clk 0:00:11]} 28. gxh6 {[%clk 0:00:45]}  Kh7 {[%clk 0:00:12]} 29. Nxd5 {[%clk 0:00:36]}  exd5 {[%clk 0:00:08]} 30. Rxc8 {[%clk 0:00:31]}  Nd3 {[%clk 0:00:08]} 31. Rxf8 {[%clk 0:00:21]}  Qxf8 {[%clk 0:00:09]} 32. Qd1 {[%clk 0:00:18]}  Qb4 {[%clk 0:00:04]} 33. Qxd3 {[%clk 0:00:18]}  a5 {[%clk 0:00:05]} 34. Rb1 {[%clk 0:00:13]}  a4 {[%clk 0:00:06]} 35. Qc2 {[%clk 0:00:09]}  Qc4 {[%clk 0:00:05]} 36. Qa2 {[%clk 0:00:04]}  Qd3 {[%clk 0:00:04]} 37. Rb2 {[%clk 0:00:03]}  Qe4+ {[%clk 0:00:04]} 38. Kg1 {[%clk 0:00:02]}  Nxd4 {[%clk 0:00:05]} 39. Bxd4 {[%clk 0:00:02]}  Qxd4 {[%clk 0:00:06]} 40. Qa3 {[%clk 0:00:02]}  Qxe5 {[%clk 0:00:06]} 41. Rb7 {[%clk 0:00:02]}  Qe1+ {[%clk 0:00:06]} 42. Kg2 {[%clk 0:00:01]}  Qe4+ {[%clk 0:00:07]} 43. Kh2 {[%clk 0:00:02]}  d4 {[%clk 0:00:07]} 0-1


[Site "https://www.chess.com"]

[Event "Titled Tuesday Blitz March 01 Late 2022"]
[White "Demchenko, Anton"]
[Black "Estrada Nieto, Julian"]
[WhiteFideId "4160258"]
[BlackFideId "5101018"]
[WhiteElo "2539"]
[BlackElo "2246"]
[Result "1-0"]
[Round "01"]
[TimeControl "180+1"]
[Date "2022.03.01"]
[WhiteClock "0:00:42"]
[BlackClock "0:00:05"]

1. e4 {[%clk 0:03:00]}  e5 {[%clk 0:02:54]} 2. Nf3 {[%clk 0:03:00]}  Nc6 {[%clk 0:02:53]} 3. Bc4 {[%clk 0:03:00]}  Bc5 {[%clk 0:02:51]} 4. d3 {[%clk 0:03:01]}  d6 {[%clk 0:02:51]} 5. c3 {[%clk 0:02:59]}  Nf6 {[%clk 0:02:52]} 6. Bg5 {[%clk 0:02:59]}  a6 {[%clk 0:02:49]} 7. Nbd2 {[%clk 0:02:58]}  h6 {[%clk 0:02:48]} 8. Bh4 {[%clk 0:02:58]}  Ba7 {[%clk 0:02:47]} 9. a4 {[%clk 0:02:58]}  g5 {[%clk 0:02:47]} 10. Bg3 {[%clk 0:02:57]}  Bg4 {[%clk 0:02:46]} 11. h3 {[%clk 0:02:57]}  Bh5 {[%clk 0:02:44]} 12. Qc2 {[%clk 0:02:53]}  Qd7 {[%clk 0:02:39]} 13. b4 {[%clk 0:02:52]}  Nd8 {[%clk 0:02:32]} 14. d4 {[%clk 0:02:38]}  exd4 {[%clk 0:02:20]} 15. Nxd4 {[%clk 0:02:38]}  Bg6 {[%clk 0:02:15]} 16. O-O {[%clk 0:02:29]}  Nh5 {[%clk 0:02:05]} 17. Bh2 {[%clk 0:02:25]}  Ne6 {[%clk 0:01:57]} 18. Nxe6 {[%clk 0:01:59]}  fxe6 {[%clk 0:01:56]} 19. Qb3 {[%clk 0:01:59]}  Ng7 {[%clk 0:01:49]} 20. Kh1 {[%clk 0:01:53]}  O-O-O {[%clk 0:01:49]} 21. a5 {[%clk 0:01:47]}  d5 {[%clk 0:01:47]} 22. exd5 {[%clk 0:01:42]}  exd5 {[%clk 0:01:47]} 23. Be2 {[%clk 0:01:42]}  Rhf8 {[%clk 0:01:38]} 24. b5 {[%clk 0:01:40]}  axb5 {[%clk 0:01:29]} 25. Bxb5 {[%clk 0:01:31]}  c6 {[%clk 0:01:22]} 26. Be2 {[%clk 0:01:31]}  Rxf2 {[%clk 0:01:19]} 27. Rxf2 {[%clk 0:01:24]}  Bxf2 {[%clk 0:01:19]} 28. Nf3 {[%clk 0:01:21]}  Be4 {[%clk 0:01:08]} 29. a6 {[%clk 0:01:10]}  b5 {[%clk 0:01:02]} 30. Ne5 {[%clk 0:01:05]}  Qe6 {[%clk 0:00:37]} 31. a7 {[%clk 0:00:52]}  Kb7 {[%clk 0:00:34]} 32. Nxc6 {[%clk 0:00:50]}  Qxc6 {[%clk 0:00:17]} 33. Bxb5 {[%clk 0:00:44]}  Qb6 {[%clk 0:00:17]} 34. Qa4 {[%clk 0:00:42]}  Rc8 {[%clk 0:00:06]} 35. a8=Q+ {[%clk 0:00:41]}  Rxa8 {[%clk 0:00:05]} 36. Qxa8# {[%clk 0:00:42]} 1-0


[Site "https://www.chess.com"]